fUST/lending_fUST_20250312
["ID","MTS","AMOUNT","RATE_DAILY","PERIOD"]
[355962497,1741734718531,-500.0,0.00026613,2]
[355962498,1741734718540,-3000.0,0.0002675,7]
[355962499,1741734718549,-27078.87771459,0.00026797,4]
[355962500,1741734718560,-600.0,0.00026841,2]
[355962501,1741734718569,-23179.53,0.00026849,2]
[355962502,1741734718579,-542.81,0.00026849,2]
[355962503,1741734718588,-500.0,0.00026849,2]
[355962504,1741734718597,-2091.01,0.00026849,2]
[355962505,1741734718607,-13103.95,0.00026849,2]
[355962506,1741734718617,-9736.43,0.00026849,2]
[355962507,1741734718626,-794.64,0.00026849,2]
[355962508,1741734718636,-705.67,0.00026849,2]
[355962509,1741734718645,-536.16,0.00026849,2]
[355962510,1741734718655,-576.66,0.00026849,2]
[355962511,1741734718664,-1473.83,0.00026849,2]
[355962512,1741734718674,-570.33,0.00026849,2]
[355962513,1741734718683,-505.73,0.00026849,2]
[355962514,1741734718693,-5474.57,0.00026849,2]
[355962515,1741734718703,-3769.43,0.00026849,2]
[355962516,1741734718712,-1250.48,0.00026849,2]
[355962517,1741734718722,-2486.99,0.00026849,2]
[355962518,1741734718731,-525.77,0.00026849,2]
[355962519,1741734718740,-500.0,0.00026849,2]
[355962520,1741734718750,-558.0,0.000269,12]
[355962521,1741734718762,-1152.0,0.00026944,2]
[355962522,1741734718772,-101326.78137724,0.00027,2]
[355962523,1741734718783,-200.0,0.00027,120]
[355962524,1741734718792,-200.0,0.00027,120]
[355962525,1741734718802,-3638.87744384,0.00027,2]
[355962526,1741734718812,-1000.0,0.00027,27]
[355962527,1741734718823,-337.78969098,0.00027,2]
[355962528,1741734718832,-379.27584,0.00027,120]
[355962529,1741734718843,-341.11342745,0.00027,2]
[355962530,1741734718853,-300.0,0.00027,30]
[355962531,1741734718864,-5000.0,0.00027,30]
[355962532,1741734718874,-5000.0,0.00027,30]
[355962533,1741734718884,-5000.0,0.00027,30]
[355962534,1741734718893,-5000.0,0.00027,30]
[355962535,1741734718903,-5000.0,0.00027,30]
[355962536,1741734718913,-5000.0,0.00027,30]
[355962537,1741734718923,-5000.0,0.00027,30]
[355962538,1741734718934,-5000.0,0.00027,30]
[355962539,1741734718944,-5000.0,0.00027,30]
[355962540,1741734718954,-5000.0,0.00027,30]
[355962541,1741734718963,-5000.0,0.00027,30]
[355962542,1741734718973,-5000.0,0.00027,30]
[355962543,1741734718982,-5000.0,0.00027,30]
[355962544,1741734718992,-3266.79,0.00027,30]
[355962545,1741734719002,-5000.0,0.00027,30]
[355962546,1741734719011,-5000.0,0.00027,30]
[355962547,1741734719021,-416.66666667,0.00027,30]
[355962548,1741734719032,-158.770233,0.00027,60]
[355962549,1741734719042,-2000.0,0.00027,4]
[355962550,1741734719051,-398.0,0.00027042,2]
[355962551,1741734719061,-600.0,0.00027118,2]
[355962552,1741734719070,-150.0,0.0002712,7]
[355962553,1741734719080,-150.0,0.0002712,7]
[355962554,1741734719090,-23179.53,0.00027123,2]
[355962555,1741734719099,-542.81,0.00027123,2]
[355962556,1741734719108,-500.0,0.00027123,2]
[355962557,1741734719118,-2091.01,0.00027123,2]
[355962558,1741734719127,-13103.95,0.00027123,2]
[355962559,1741734719136,-9736.43,0.00027123,2]
[355962560,1741734719146,-794.64,0.00027123,2]
[355962561,1741734719155,-705.67,0.00027123,2]
[355962562,1741734719164,-536.16,0.00027123,2]
[355962563,1741734719174,-576.66,0.00027123,2]
[355962564,1741734719183,-1473.83,0.00027123,2]
[355962565,1741734719193,-570.33,0.00027123,2]
[355962566,1741734719202,-505.73,0.00027123,2]
[355962567,1741734719211,-5474.57,0.00027123,2]
[355962568,1741734719220,-3769.43,0.00027123,2]
[355962569,1741734719229,-1250.48,0.00027123,2]
[355962570,1741734719239,-2486.99,0.00027123,2]
[355962571,1741734719248,-525.77,0.00027123,2]
[355962572,1741734719257,-27078.87771459,0.00027141,4]
[355962573,1741734719267,-197.210203,0.00027149,2]
[355962574,1741734719277,-600.0,0.00027394,2]
[355962575,1741734719286,-500.0,0.00027397,3]
[355962576,1741734719296,-500.0,0.00027397,3]
[355962577,1741734719305,-23179.53,0.00027397,2]
[355962578,1741734719314,-542.81,0.00027397,2]
[355962579,1741734719324,-500.0,0.00027397,2]
[355962580,1741734719333,-2091.01,0.00027397,2]
[355962581,1741734719342,-13103.95,0.00027397,2]
[355962582,1741734719352,-9736.43,0.00027397,2]
[355962583,1741734719361,-794.64,0.00027397,2]
[355962584,1741734719370,-705.67,0.00027397,2]
[355962585,1741734719379,-536.16,0.00027397,2]
[355962586,1741734719388,-576.66,0.00027397,2]
[355962587,1741734719398,-1473.83,0.00027397,2]
[355962588,1741734719407,-570.33,0.00027397,2]
[355962589,1741734719416,-505.73,0.00027397,2]
[355962590,1741734719426,-5474.57,0.00027397,2]
[355962591,1741734719435,-3769.43,0.00027397,2]
[355962592,1741734719445,-1250.48,0.00027397,2]
[355962593,1741734719454,-2486.99,0.00027397,2]
[355962594,1741734719464,-525.77,0.00027397,2]
[355962595,1741734719473,-513.82,0.00027397,2]
[355962596,1741734719483,-1000.0,0.00027397,60]
[355962597,1741734719492,-1000.0,0.00027397,60]
[355962598,1741734719502,-1000.0,0.00027397,60]
[355962599,1741734719511,-1000.0,0.00027397,60]
[355962600,1741734719520,-1000.0,0.00027397,60]
[355962601,1741734719530,-1000.0,0.00027397,60]
[355962602,1741734719539,-1000.0,0.00027397,60]
[355962603,1741734719549,-1000.0,0.00027397,60]
[355962604,1741734719559,-1000.0,0.00027397,60]
[355962605,1741734719568,-1000.0,0.00027397,60]
[355962606,1741734719578,-1000.0,0.00027397,60]
[355962607,1741734719587,-1000.0,0.00027397,60]
[355962608,1741734719596,-1000.0,0.00027397,60]
[355962609,1741734719606,-1000.0,0.00027397,60]
[355962610,1741734719616,-179.53974773,0.00027397,60]
[355962611,1741734719625,-500.0,0.00027397,2]
[355962612,1741734719635,-500.0,0.00027397,2]
[355962613,1741734719644,-500.0,0.00027397,2]
[355962614,1741734719654,-500.0,0.00027397,2]
[355962615,1741734719663,-500.0,0.00027397,2]
[355962616,1741734719672,-500.0,0.00027397,2]
[355962617,1741734719681,-500.0,0.00027397,2]
[355962618,1741734719691,-602.73802183,0.00027397,2]
[355962619,1741734719700,-1000.0,0.00027397,5]
[355962620,1741734719709,-1000.0,0.00027397,5]
[355962621,1741734719719,-1007.62895876,0.00027397,5]
[355962622,1741734719729,-500.0,0.00027397,2]
[355962623,1741734719738,-500.7086552,0.00027397,2]
[355962624,1741734719747,-3086.16345629,0.00027397,120]
[355962625,1741734719757,-150.33,0.00027397,2]
[355962626,1741734719769,-150.33,0.00027397,2]
[355962627,1741734719780,-150.33,0.00027397,2]
[355962628,1741734719789,-218.01,0.00027397,2]
[355962629,1741734719799,-1000.0,0.00027397,2]
[355962630,1741734719810,-162.496024,0.00027397,120]
[355962631,1741734719821,-150.0,0.00027397,5]
[355962632,1741734719830,-150.0,0.00027397,5]
[355962633,1741734719841,-27078.87771459,0.00027486,4]
[355962634,1741734719851,-44755.45286523,0.000275,2]
[355962635,1741734719860,-3000.0,0.00027572,7]
[355962636,1741734719870,-150.0,0.00027616,2]
[355962637,1741734719879,-500.0,0.00027671,3]
[355962638,1741734719889,-500.0,0.00027671,3]
[355962639,1741734719899,-23179.53,0.00027671,2]
[355962640,1741734719908,-542.81,0.00027671,2]
[355962641,1741734719917,-500.0,0.00027671,2]
[355962642,1741734719927,-2091.01,0.00027671,2]
[355962643,1741734719937,-13103.95,0.00027671,2]
[355962644,1741734719946,-9736.43,0.00027671,2]
[355962645,1741734719955,-794.64,0.00027671,2]
[355962646,1741734719965,-705.67,0.00027671,2]
[355962647,1741734719975,-536.16,0.00027671,2]
[355962648,1741734719984,-576.66,0.00027671,2]
[355962649,1741734719994,-1473.83,0.00027671,2]
[355962650,1741734720003,-570.33,0.00027671,2]
[355962651,1741734720014,-505.73,0.00027671,2]
[355962652,1741734720024,-5474.57,0.00027671,2]
[355962653,1741734720035,-3769.43,0.00027671,2]
[355962654,1741734720045,-1250.48,0.00027671,2]
[355962655,1741734720057,-2486.99,0.00027671,2]
[355962656,1741734720068,-525.77,0.00027671,2]
[355962657,1741734720079,-600.0,0.00027671,2]
[355962658,1741734720090,-150.0,0.00027681,2]
[355962659,1741734720101,-150.0,0.00027681,2]
[355962660,1741734720113,-27078.87771459,0.00027831,4]
[355962661,1741734720125,-158.770233,0.000279,60]
[355962662,1741734720136,-500.0,0.00027945,3]
[355962663,1741734720146,-500.0,0.00027945,3]
[355962664,1741734720353,-23179.53,0.00027945,2]
[355962665,1741734720364,-542.81,0.00027945,2]
[355962666,1741734720373,-530.8,0.00027945,2]
[355962667,1741734720383,-2091.01,0.00027945,2]
[355962668,1741734720394,-13103.95,0.00027945,2]
[355962669,1741734720404,-9736.43,0.00027945,2]
[355962670,1741734720414,-794.64,0.00027945,2]
[355962671,1741734720423,-705.67,0.00027945,2]
[355962672,1741734720433,-536.16,0.00027945,2]
[355962673,1741734720443,-576.66,0.00027945,2]
[355962674,1741734720452,-1473.83,0.00027945,2]
[355962675,1741734720461,-570.33,0.00027945,2]
[355962676,1741734720471,-505.73,0.00027945,2]
[355962677,1741734720480,-5474.57,0.00027945,2]
[355962678,1741734720490,-3769.43,0.00027945,2]
[355962679,1741734720499,-1250.48,0.00027945,2]
[355962680,1741734720509,-2486.99,0.00027945,2]
[355962681,1741734720518,-525.77,0.00027945,2]
[355962682,1741734720529,-150.8317865,0.00027945,5]
[355962683,1741734720539,-250.0,0.00027945,5]
[355962684,1741734720548,-600.0,0.00027948,2]
[355962685,1741734720558,-27160.74012146,0.0002799,2]
[355962686,1741734720568,-1178.33495042,0.0002799,7]
[355962687,1741734720577,-1173.84771348,0.0002799,2]
[355962688,1741734720587,-1000.0,0.00028,28]
[355962689,1741734720597,-416.66666667,0.00028,7]
[355962690,1741734720608,-2000.0,0.00028,4]
[355962691,1741734720617,-500.0,0.00028014,5]
[355962692,1741734720627,-27078.87771459,0.00028176,5]
[355962693,1741734720637,-170.682837,0.000282,60]
[355962694,1741734720646,-500.0,0.00028219,3]
[355962695,1741734720656,-500.0,0.00028219,3]
[355962696,1741734720666,-23179.69821329,0.00028219,2]
[355962697,1741734720676,-542.84605901,0.00028219,2]
[355962698,1741734720686,-2091.14782622,0.00028219,2]
[355962699,1741734720695,-13104.07482383,0.00028219,2]
[355962700,1741734720705,-9736.64533208,0.00028219,2]
[355962701,1741734720715,-794.83631842,0.00028219,2]
[355962702,1741734720725,-705.84,0.00028219,2]
[355962703,1741734720736,-536.28473582,0.00028219,2]
[355962704,1741734720745,-576.81568606,0.00028219,2]
[355962705,1741734720755,-1474.04168993,0.00028219,2]
[355962706,1741734720766,-570.56334021,0.00028219,2]
[355962707,1741734720777,-505.89858136,0.00028219,2]
[355962708,1741734720787,-5474.71376734,0.00028219,2]
[355962709,1741734720799,-3769.43755162,0.00028219,2]
[355962710,1741734720808,-1250.58570621,0.00028219,2]
[355962711,1741734720818,-2487.01638415,0.00028219,2]
[355962712,1741734720828,-525.90765692,0.00028219,2]
[355962713,1741734720839,-603.81775187,0.00028224,2]
[355962714,1741734720849,-3000.0,0.00028394,7]
[355962715,1741734720858,-558.0,0.000284,13]
[355962716,1741734720868,-2000.0,0.00028432,2]
[355962717,1741734720878,-500.0,0.00028493,3]
[355962718,1741734720888,-500.0,0.00028493,3]
[355962719,1741734720898,-374.56772232,0.00028493,5]
[355962720,1741734720909,-1563.47977475,0.000285,7]
[355962721,1741734720919,-27078.87771459,0.00028521,5]
[355962722,1741734720928,-500.0,0.00028767,3]
[355962723,1741734720938,-500.0,0.00028767,3]
[355962724,1741734720948,-513.82,0.00028767,2]
[355962725,1741734720957,-165.78885431,0.000288,7]
[355962726,1741734720967,-158.770233,0.000288,60]
[355962727,1741734720977,-27078.87771459,0.00028866,5]
[355962728,1741734720987,-150.0,0.00028997,2]
[355962729,1741734720996,-200.0,0.00029,120]
[355962730,1741734721006,-773.9770986,0.00029,10]
[355962731,1741734721015,-200.0,0.00029,120]
[355962732,1741734721025,-868.06502485,0.00029,2]
[355962733,1741734721036,-1000.0,0.00029,29]
[355962734,1741734721046,-2000.0,0.00029,4]
[355962735,1741734721056,-7870.92,0.00029,2]
[355962736,1741734721066,-500.0,0.00029041,3]
[355962737,1741734721076,-500.0,0.00029041,3]
[355962738,1741734721087,-27078.87771459,0.0002921,5]
[355962739,1741734721096,-3000.0,0.00029216,7]
[355962740,1741734721106,-416.66666667,0.00029272,2]
[355962741,1741734721116,-4900.0,0.00029312,120]
[355962742,1741734721125,-500.0,0.00029315,3]
[355962743,1741734721136,-500.0,0.00029315,3]
[355962744,1741734721145,-1613.0,0.00029366,2]
[355962745,1741734721155,-500.0,0.00029415,5]
[355962746,1741734721164,-160.0,0.00029433,2]
[355962747,1741734721174,-153.0,0.00029506,30]
[355962748,1741734721184,-153.0,0.00029506,30]
[355962749,1741734721194,-224.2436163,0.0002955,30]
[355962750,1741734721204,-559.4225717,0.0002955,30]
[355962751,1741734721214,-153.0,0.0002955,30]
[355962752,1741734721224,-559.4225717,0.0002955,30]
[355962753,1741734721234,-559.4225717,0.0002955,30]
[355962754,1741734721244,-155.417131,0.0002955,30]
[355962755,1741734721254,-1116.8533835,0.0002955,30]
[355962756,1741734721263,-155.417131,0.0002955,30]
[355962757,1741734721273,-559.4225717,0.0002955,30]
[355962758,1741734721286,-27078.87771459,0.00029555,5]
[355962759,1741734721296,-500.0,0.00029589,3]
[355962760,1741734721306,-500.0,0.00029589,3]
[355962761,1741734721316,-200.0,0.0002966,27]
[355962762,1741734721326,-9572.92440169,0.00029716,2]
[355962763,1741734721336,-500.0,0.00029863,3]
[355962764,1741734721345,-500.0,0.00029863,3]
[355962765,1741734721354,-558.0,0.000299,14]
[355962766,1741734721365,-27078.87771459,0.000299,5]
[355962767,1741734721375,-4918.71230755,0.0002996,7]
[355962768,1741734721384,-418.9805047,0.0003,2]
[355962769,1741734721393,-11533.08113198,0.0003,60]
[355962770,1741734721403,-6195.08196077,0.0003,30]
[355962771,1741734721414,-3880.98617494,0.0003,60]
[355962772,1741734721423,-25000.0,0.0003,2]
[355962773,1741734721433,-26958.91244651,0.0003,2]
[355962774,1741734721443,-368.29,0.0003,14]
[355962775,1741734721452,-1000.0,0.0003,120]
[355962776,1741734721462,-1664.23903029,0.0003,2]
[355962777,1741734721471,-324.0,0.0003,2]
[355962778,1741734721480,-10005.18535474,0.0003,2]
[355962779,1741734721490,-246.4085,0.0003,2]
[355962780,1741734721499,-164.273,0.0003,2]
[355962781,1741734721509,-2929.16,0.0003,2]
[355962782,1741734721519,-10069.0,0.0003,30]
[355962783,1741734721530,-227.0,0.0003,2]
[355962784,1741734721540,-416.66666667,0.0003,30]
[355962785,1741734721550,-398.0,0.00030042,2]
[355962786,1741734721560,-567.21603158,0.00030136,3]
[355962787,1741734721569,-500.0,0.00030136,3]
[355962788,1741734721579,-513.82,0.00030136,2]
[355962789,1741734721589,-1037.0,0.00030136,2]
[355962790,1741734721599,-2220.276,0.00030216,2]
[355962791,1741734721608,-532.844,0.00030216,7]
[355962792,1741734721618,-155.417131,0.00030372,30]
[355962793,1741734721628,-155.417131,0.00030372,30]
[355962794,1741734721638,-155.417131,0.00030372,30]
[355962795,1741734721648,-559.4225717,0.00030372,30]
[355962796,1741734721657,-310.834262,0.00030372,30]
[355962797,1741734721667,-155.417131,0.00030372,30]
[355962798,1741734721682,-155.417131,0.00030372,30]
[355962799,1741734721691,-559.4225717,0.00030372,30]
[355962800,1741734721701,-329.8006109,0.00030372,30]
[355962801,1741734721710,-559.4225717,0.00030372,30]
[355962802,1741734721720,-559.4225717,0.00030372,30]
[355962803,1741734721730,-559.4225717,0.00030372,30]
[355962804,1741734721739,-559.4225717,0.00030372,30]
[355962805,1741734721749,-167.8448478,0.00030372,30]
[355962806,1741734721759,-167.8448478,0.00030372,30]
[355962807,1741734721772,-167.8448478,0.00030372,30]
[355962808,1741734721786,-500.0,0.0003041,3]
[355962809,1741734721796,-150.0,0.00030681,2]
[355962810,1741734721807,-150.0,0.00030681,2]
[355962811,1741734721817,-500.0,0.00030684,3]
[355962812,1741734721827,-3000.0,0.0003086,7]
[355962813,1741734721838,-500.0,0.00030885,5]
[355962814,1741734721847,-500.0,0.00030958,3]
[355962815,1741734721858,-300.00810675,0.0003099,2]
[355962816,1741734721867,-2944.07786849,0.00031,120]
[355962817,1741734721878,-167.8448478,0.00031194,30]
[355962818,1741734721888,-167.8448478,0.00031194,30]
[355962819,1741734721898,-335.5450257,0.00031194,30]
[355962820,1741734721908,-167.8448478,0.00031194,30]
[355962821,1741734721919,-167.8448478,0.00031194,30]
[355962822,1741734721929,-167.8448478,0.00031194,30]
[355962823,1741734721939,-464.7784256,0.00031194,30]
[355962824,1741734721949,-8900.0,0.000312,120]
[355962825,1741734721959,-200.0,0.000312,2]
[355962826,1741734721969,-500.0,0.00031232,3]
[355962827,1741734721979,-558.0,0.000314,15]
[355962828,1741734721989,-94242.59144242,0.0003146,2]
[355962829,1741734721999,-546.31388108,0.00031506,3]
[355962830,1741734722009,-513.82,0.00031506,2]
[355962831,1741734722018,-258.0,0.0003173,33]
[355962832,1741734722032,-799999.933295,0.00031778,30]
[355962833,1741734722042,-2000.0,0.000318,4]
[355962834,1741734722052,-2000.0,0.000318,5]
[355962835,1741734722061,-2000.0,0.00031863,2]
[355962836,1741734722071,-350.0,0.00032,7]
[355962837,1741734722080,-109786.90230002,0.00032,2]
[355962838,1741734722090,-1511.82549905,0.00032,7]
[355962839,1741734722100,-1511.67466343,0.00032,7]
[355962840,1741734722111,-2258.0,0.00032006,2]
[355962841,1741734722121,-200.0,0.000323,120]
[355962842,1741734722131,-200.0,0.000323,120]
[355962843,1741734722141,-218.50345,0.000323,120]
[355962844,1741734722151,-200.0,0.000323,120]
[355962845,1741734722160,-30000.0,0.000323,2]
[355962846,1741734722170,-2000.0,0.00032328,20]
[355962847,1741734722180,-2000.0,0.00032328,20]
[355962848,1741734722190,-2000.0,0.00032328,20]
[355962849,1741734722201,-2000.0,0.00032328,20]
[355962850,1741734722211,-2000.0,0.00032328,20]
[355962851,1741734722221,-2023.88488879,0.00032328,20]
[355962852,1741734722231,-12354.58552187,0.0003239,2]
[355962853,1741734722241,-500.0,0.0003243,5]
[355962854,1741734722251,-2000.0,0.000325,15]
[355962855,1741734722260,-2000.0,0.000325,15]
[355962856,1741734722270,-380.33324372,0.000325,30]
[355962857,1741734722280,-409.66627867,0.000325,30]
[355962858,1741734722290,-3000.0,0.00032504,7]
[355962859,1741734722300,-1024.2083118,0.00032735,4]
[355962860,1741734722310,-160.0,0.00032755,2]
[355962861,1741734722320,-1075.369,0.00032875,2]
[355962862,1741734722329,-1429.98,0.00032876,2]
[355962863,1741734722339,-1429.98,0.00032876,2]
[355962864,1741734722348,-1429.98,0.00032876,2]
[355962865,1741734722357,-1429.98,0.00032876,2]
[355962866,1741734722367,-1429.98,0.00032876,2]
[355962867,1741734722377,-1429.98,0.00032876,2]
[355962868,1741734722387,-1429.98,0.00032876,2]
[355962869,1741734722396,-1429.98,0.00032876,2]
[355962870,1741734722405,-1429.98,0.00032876,2]
[355962871,1741734722415,-1429.98,0.00032876,2]
[355962872,1741734722425,-1429.98,0.00032876,2]
[355962873,1741734722435,-1429.98,0.00032876,2]
[355962874,1741734722444,-1429.98,0.00032876,2]
[355962875,1741734722454,-1429.98,0.00032876,2]
[355962876,1741734722464,-1429.98,0.00032876,2]
[355962877,1741734722473,-1429.98,0.00032876,2]
[355962878,1741734722482,-1429.98,0.00032876,2]
[355962879,1741734722492,-1429.98,0.00032876,2]
[355962880,1741734722502,-1429.98,0.00032876,2]
[355962881,1741734722512,-1429.98,0.00032876,2]
[355962882,1741734722521,-1429.98,0.00032876,2]
[355962883,1741734722534,-1429.98,0.00032876,2]
[355962884,1741734722544,-1429.98,0.00032876,2]
[355962885,1741734722553,-1430.03651684,0.00032876,2]
[355962886,1741734722563,-513.82,0.00032876,2]
[355962887,1741734722572,-500.0,0.00032876,120]
[355962888,1741734722582,-500.0,0.00032876,120]
[355962889,1741734722592,-500.0,0.00032876,120]
[355962890,1741734722602,-500.0,0.00032876,120]
[355962891,1741734722612,-500.0,0.00032876,120]
[355962892,1741734722622,-500.0,0.00032876,120]
[355962893,1741734722632,-500.0,0.00032876,120]
[355962894,1741734722642,-500.0,0.00032876,120]
[355962895,1741734722652,-500.0,0.00032876,120]
[355962896,1741734722662,-500.0,0.00032876,120]
[355962897,1741734722672,-500.0,0.00032876,120]
[355962898,1741734722682,-500.0,0.00032876,120]
[355962899,1741734722692,-500.0,0.00032876,120]
[355962900,1741734722702,-500.0,0.00032876,120]
[355962901,1741734722711,-500.0,0.00032876,120]
[355962902,1741734722721,-512.09373083,0.00032876,120]
[355962903,1741734722731,-1090.5,0.00032876,120]
[355962904,1741734722741,-429.54050447,0.00032876,2]
[355962905,1741734722751,-379.05003664,0.00032876,2]
[355962906,1741734722764,-486.80797686,0.00032876,2]
[355962907,1741734722775,-433.36065782,0.00032876,2]
[355962908,1741734722787,-500.0,0.00032876,2]
[355962909,1741734722797,-1067.99009701,0.00032876,2]
[355962910,1741734722807,-1067.99009701,0.00032876,2]
[355962911,1741734722817,-1067.99009701,0.00032876,2]
[355962912,1741734722828,-1067.99009701,0.00032876,2]
[355962913,1741734722838,-1067.99009701,0.00032876,2]
[355962914,1741734722849,-1067.99009701,0.00032876,2]
[355962915,1741734722860,-500.0,0.00032877,2]
[355962916,1741734722869,-151.0,0.00032877,14]
[355962917,1741734722879,-151.0,0.00032877,14]
[355962918,1741734722889,-151.0,0.00032877,14]
[355962919,1741734722898,-151.0,0.00032877,14]
[355962920,1741734722907,-151.0,0.00032877,14]
[355962921,1741734722917,-151.0,0.00032877,14]
[355962922,1741734722927,-151.0,0.00032877,14]
[355962923,1741734722937,-151.0,0.00032877,14]
[355962924,1741734722947,-151.0,0.00032877,14]
[355962925,1741734722957,-151.0,0.00032877,14]
[355962926,1741734722967,-151.0,0.00032877,14]
[355962927,1741734722976,-151.0,0.00032877,14]
[355962928,1741734722986,-151.0,0.00032877,14]
[355962929,1741734722995,-151.0,0.00032877,14]
[355962930,1741734723005,-151.0,0.00032877,14]
[355962931,1741734723015,-266.988702,0.00032877,14]
[355962932,1741734723026,-500.0,0.00032877,14]
[355962933,1741734723038,-500.0,0.00032877,14]
[355962934,1741734723048,-500.0,0.00032877,14]
[355962935,1741734723058,-500.0,0.00032877,14]
[355962936,1741734723069,-500.0,0.00032877,14]
[355962937,1741734723079,-500.0,0.00032877,14]
[355962938,1741734723090,-500.0,0.00032877,14]
[355962939,1741734723100,-500.0,0.00032877,14]
[355962940,1741734723111,-500.0,0.00032877,14]
[355962941,1741734723122,-500.0,0.00032877,14]
[355962942,1741734723311,-500.0,0.00032877,14]
[355962943,1741734723322,-500.0,0.00032877,14]
[355962944,1741734723332,-500.0,0.00032877,14]
[355962945,1741734723342,-500.0,0.00032877,14]
[355962946,1741734723352,-500.0,0.00032877,14]
[355962947,1741734723362,-500.0,0.00032877,14]
[355962948,1741734723372,-500.0,0.00032877,14]
[355962949,1741734723382,-500.0,0.00032877,14]
[355962950,1741734723391,-500.0,0.00032877,14]
[355962951,1741734723401,-500.0,0.00032877,14]
[355962952,1741734723411,-274.32,0.00032899,2]
[355962953,1741734723421,-274.32,0.00032899,2]
[355962954,1741734723430,-274.32,0.00032899,2]
[355962955,1741734723439,-274.32,0.00032899,2]
[355962956,1741734723449,-274.32,0.00032899,2]
[355962957,1741734723459,-274.32,0.00032899,2]
[355962958,1741734723468,-274.32,0.00032899,2]
[355962959,1741734723477,-274.32,0.00032899,2]
[355962960,1741734723487,-274.32,0.00032899,2]
[355962961,1741734723496,-274.32,0.00032899,2]
[355962962,1741734723505,-9451.58,0.000329,30]
[355962963,1741734723515,-37534.22,0.000329,30]
[355962964,1741734723525,-3154.73,0.000329,30]
[355962965,1741734723535,-1473.2,0.000329,30]
[355962966,1741734723544,-558.0,0.000329,16]
[355962967,1741734723554,-1090.5,0.00032904,120]
[355962968,1741734723565,-1090.5,0.00032931,120]
[355962969,1741734723575,-1090.5,0.00032958,120]
[355962970,1741734723585,-1090.5,0.00032986,120]
[355962971,1741734723596,-1178.56,0.00033,30]
[355962972,1741734723605,-227.0,0.00033,2]
[355962973,1741734723615,-227.0,0.00033,2]
[355962974,1741734723625,-416.66666667,0.00033,120]
[355962975,1741734723635,-1090.5,0.00033013,120]
[355962976,1741734723645,-1090.5,0.00033041,120]
[355962977,1741734723655,-398.0,0.00033042,2]
[355962978,1741734723665,-1090.5,0.00033068,120]
[355962979,1741734723675,-1090.5,0.00033095,120]
[355962980,1741734723684,-1090.5,0.00033123,120]
[355962981,1741734723694,-9572.92440169,0.00033131,2]
[355962982,1741734723704,-175655.78485141,0.0003315,40]
[355962983,1741734723713,-1090.5,0.0003315,120]
[355962984,1741734723723,-1090.5,0.00033178,120]
[355962985,1741734723732,-1090.5,0.00033205,120]
[355962986,1741734723743,-1090.5,0.00033232,120]
[355962987,1741734723753,-1090.5,0.0003326,120]
[355962988,1741734723766,-1090.5,0.00033287,120]
[355962989,1741734723775,-3154.73,0.000333,30]
[355962990,1741734723787,-1473.2,0.000333,30]
[355962991,1741734723797,-12746.41990607,0.000333,4]
[355962992,1741734723807,-1090.5,0.00033315,120]
[355962993,1741734723817,-1090.5,0.00033342,120]
[355962994,1741734723827,-1090.5,0.00033369,120]
[355962995,1741734723838,-1090.5,0.00033397,120]
[355962996,1741734723848,-1090.5,0.00033424,120]